fUSD/lending_fUSD_20241021
["ID","MTS","AMOUNT","RATE_DAILY","PERIOD"]
[340624194,1729549839274,-165.43,0.00035616,120]
[340624195,1729549839283,-16053.9968045,0.00036362,15]
[340624196,1729549839292,-182.82493661,0.000375,2]
[340624197,1729549839302,-218.7681429,0.00037639,2]
[340624198,1729549839311,-250.0,0.00037896,2]
[340624199,1729549839320,-156.31,0.00038092,120]
[340624200,1729549839329,-164.52,0.00038925,2]
[340624201,1729549839338,-150.52,0.0003899,2]
[340624202,1729549839347,-8171.36847451,0.00039,2]
[340624203,1729549839357,-37975.63409653,0.00039,10]
[340624204,1729549839366,-319818.60653902,0.00039,2]
[340624205,1729549839375,-490.3,0.0003932,2]
[340624206,1729549839385,-572.49475098,0.000394,30]
[340624207,1729549839394,-2002.04599765,0.000398,120]
[340624208,1729549839403,-5233.68753661,0.000399,15]
[340624209,1729549839412,-270.0694747,0.0003999,120]
[340624210,1729549839422,-488.49,0.0003999,10]
[340624211,1729549839431,-842.72,0.0003999,10]
[340624212,1729549839440,-702.27,0.0003999,10]
[340624213,1729549839450,-585.22,0.0003999,10]
[340624214,1729549839459,-477.12749073,0.0004,30]
[340624215,1729549839469,-397.91927984,0.0004,7]
[340624216,1729549839478,-982.78321207,0.0004,120]
[340624217,1729549839488,-2966.46483248,0.0004,30]
[340624218,1729549839498,-402.30647652,0.0004,30]
[340624219,1729549839507,-181.47,0.0004,2]
[340624220,1729549839517,-1493.63042252,0.0004,30]
[340624221,1729549839526,-862.71235893,0.0004,30]
[340624222,1729549839536,-187.20593615,0.0004,30]
[340624223,1729549839546,-2153.87275317,0.0004,120]
[340624224,1729549839556,-649.8340886,0.0004,30]
[340624225,1729549839565,-2113.56252101,0.0004,120]
[340624226,1729549839575,-921.52899968,0.0004,7]
[340624227,1729549839584,-1000.0,0.0004,20]
[340624228,1729549839594,-2625.21812431,0.0004,120]
[340624229,1729549839603,-372.19133881,0.0004,2]
[340624230,1729549839612,-1173.13805303,0.0004,120]
[340624231,1729549839622,-470.70885823,0.0004,120]
[340624232,1729549839631,-1309.96124627,0.0004,7]
[340624233,1729549839641,-208.68997855,0.0004,2]
[340624234,1729549839650,-483.028176,0.0004,30]
[340624235,1729549839659,-1335.74693659,0.0004,60]
[340624236,1729549839668,-574.54976674,0.0004,120]
[340624237,1729549839678,-1292.89314684,0.0004,120]
[340624238,1729549839687,-1565.99442797,0.0004,120]
[340624239,1729549839697,-1686.19610062,0.0004,120]
[340624240,1729549839706,-11738.5181766,0.00040221,7]
[340624241,1729549839715,-7437.2,0.000403,2]
[340624242,1729549839725,-16053.9968045,0.00040442,15]
[340624243,1729549839735,-156.31,0.0004082,120]
[340624244,1729549839745,-187.21,0.00041126,2]
[340624245,1729549839754,-2168.68,0.00041158,2]
[340624246,1729549839764,-370.0,0.00041158,2]
[340624247,1729549839773,-2832.34,0.00041158,2]
[340624248,1729549839782,-23900.0,0.00041158,2]
[340624249,1729549839792,-1500.0,0.00041196,2]
[340624250,1729549839801,-250.0,0.00041282,120]
[340624251,1729549839810,-211.97,0.0004129,2]
[340624252,1729549839819,-250.0,0.000413,2]
[340624253,1729549839829,-181.47,0.00041344,2]
[340624254,1729549839838,-490.3,0.00041584,2]
[340624255,1729549839847,-155.27,0.0004173,2]
[340624256,1729549839856,-155.27,0.00041748,2]
[340624257,1729549839866,-155.27,0.00041765,2]
[340624258,1729549839875,-155.27,0.00041782,2]
[340624259,1729549839885,-155.27,0.000418,2]
[340624260,1729549839895,-155.27,0.00041817,2]
[340624261,1729549839906,-155.27,0.00041835,2]
[340624262,1729549839916,-155.27,0.00041852,2]
[340624263,1729549839927,-200.0,0.00041856,2]
[340624264,1729549839937,-155.27,0.00041869,2]
[340624265,1729549839947,-500.0,0.00041873,5]
[340624266,1729549839956,-456601.40111595,0.0004188,2]
[340624267,1729549839966,-151.0,0.0004188,14]
[340624268,1729549839975,-152.265885,0.0004188,14]
[340624269,1729549839984,-961.515629,0.0004188,14]
[340624270,1729549839995,-961.515629,0.0004188,14]
[340624271,1729549840004,-151.0,0.0004188,14]
[340624272,1729549840013,-151.0,0.0004188,14]
[340624273,1729549840022,-151.000001,0.0004188,14]
[340624274,1729549840031,-151.0,0.0004188,14]
[340624275,1729549840040,-151.0,0.0004188,14]
[340624276,1729549840049,-151.0,0.0004188,14]
[340624277,1729549840058,-155.27,0.00041887,2]
[340624278,1729549840067,-155.27,0.00041904,2]
[340624279,1729549840076,-155.27,0.00041922,2]
[340624280,1729549840085,-155.27,0.00041939,2]
[340624281,1729549840094,-218.7681429,0.0004277,28]
[340624282,1729549840103,-253.76,0.000429,2]
[340624283,1729549840112,-500.0,0.00043,120]
[340624284,1729549840121,-160.16,0.00043014,120]
[340624285,1729549840130,-924.0,0.0004332,30]
[340624286,1729549840139,-1000.0,0.0004332,2]
[340624287,1729549840148,-1000.0,0.0004332,2]
[340624288,1729549840158,-1000.0,0.0004332,2]
[340624289,1729549840167,-1000.0,0.0004332,2]
[340624290,1729549840176,-1000.0,0.0004332,2]
[340624291,1729549840185,-1000.0,0.0004332,2]
[340624292,1729549840194,-1000.0,0.0004332,2]
[340624293,1729549840203,-843.0,0.0004332,2]
[340624294,1729549840212,-156.31,0.00043547,120]
[340624295,1729549840221,-3000.0,0.000438,2]
[340624296,1729549840231,-490.3,0.00043848,2]
[340624297,1729549840241,-150.0,0.00044,57]
[340624298,1729549840251,-178.12,0.00044267,120]
[340624299,1729549840260,-16053.9968045,0.00044521,15]
[340624300,1729549840269,-173.36,0.00044556,91]
[340624301,1729549840279,-1000.0,0.00044893,2]
[340624302,1729549840288,-167.11,0.00044902,30]
[340624303,1729549840297,-550.0,0.00045,120]
[340624304,1729549840306,-423.6155186,0.00045137,2]
[340624305,1729549840316,-1000.0,0.00045245,2]
[340624306,1729549840325,-150.0,0.00045253,2]
[340624307,1729549840334,-150.0,0.00045274,2]
[340624308,1729549840344,-150.0,0.00045285,2]
[340624309,1729549840353,-150.52,0.000453,2]
[340624310,1729549840362,-590.8121,0.0004531,2]
[340624311,1729549840372,-26268.555,0.0004531,2]
[340624312,1729549840381,-170.95,0.00045595,2]
[340624313,1729549840391,-924.0,0.000456,30]
[340624314,1729549840400,-150.0,0.00045602,2]
[340624315,1729549840409,-3338.5505,0.000457,2]
[340624316,1729549840418,-151.137,0.000457,2]
[340624317,1729549840427,-166.10523455,0.000457,2]
[340624318,1729549840436,-183.94413196,0.000457,2]
[340624319,1729549840445,-14831.27341792,0.000457,2]
[340624320,1729549840455,-2500.0,0.00045739,120]
[340624321,1729549840464,-150.0,0.00045796,2]
[340624322,1729549840473,-250.0,0.00045799,120]
[340624323,1729549840483,-16667.0559,0.000458,2]
[340624324,1729549840492,-868.7745,0.000458,2]
[340624325,1729549840502,-4986.3405,0.000458,2]
[340624326,1729549840512,-493.199,0.000458,2]
[340624327,1729549840523,-272.8281,0.000458,2]
[340624328,1729549840532,-340.6707,0.000458,2]
[340624329,1729549840542,-9251.3322,0.000458,2]
[340624330,1729549840551,-398.9263,0.000458,2]
[340624331,1729549840561,-1704.2607,0.000458,2]
[340624332,1729549840571,-59087.1549,0.000458,2]
[340624333,1729549840580,-1000.0,0.000458,2]
[340624334,1729549840590,-1128.2616,0.000458,2]
[340624335,1729549840599,-60399.3807,0.000458,2]
[340624336,1729549840609,-150.0,0.00045801,2]
[340624337,1729549840618,-150.0,0.00045804,2]
[340624338,1729549840628,-2500.0,0.00045899,120]
[340624339,1729549840637,-192218.9498,0.000459,2]
[340624340,1729549840646,-500.0,0.000459,2]
[340624341,1729549840656,-3114.9365,0.000459,2]
[340624342,1729549840665,-162.93675212,0.000459,21]
[340624343,1729549840675,-158.33567086,0.000459,21]
[340624344,1729549840684,-152.0,0.00045909,3]
[340624345,1729549840693,-150.0,0.00045916,2]
[340624346,1729549840703,-150.0,0.0004592,2]
[340624347,1729549840712,-150.0,0.00045945,2]
[340624348,1729549840723,-161.69571213,0.00045973,10]
[340624349,1729549840733,-151.0,0.0004599,14]
[340624350,1729549840743,-151.0,0.0004599,14]
[340624351,1729549840753,-151.0,0.0004599,14]
[340624353,1729549840762,-151.0,0.0004599,14]
[340624355,1729549840771,-961.515629,0.0004599,14]
[340624357,1729549840781,-961.515629,0.0004599,14]
[340624358,1729549840790,-151.0,0.0004599,14]
[340624360,1729549840799,-150.52,0.0004599,2]
[340624363,1729549840809,-150.52,0.0004599,2]
[340624364,1729549840818,-1441.21551186,0.00045999,120]
[340624367,1729549840827,-2000.0,0.00045999,120]
[340624368,1729549840837,-375.0,0.00045999,14]
[340624370,1729549840846,-400.0,0.00045999,10]
[340624372,1729549840855,-505.02008851,0.00045999,10]
[340624374,1729549840864,-50000.0,0.00046,46]
[340624376,1729549840874,-50000.0,0.00046,56]
[340624379,1729549840884,-377.0,0.00046,7]
[340624381,1729549840894,-1000000.0,0.00046,120]
[340624383,1729549840906,-277.846764,0.00046,14]
[340624385,1729549840915,-151.0,0.00046,14]
[340624387,1729549840924,-151.0,0.00046,14]
[340624389,1729549840935,-961.515629,0.00046,14]
[340624391,1729549840944,-961.515629,0.00046,14]
[340624393,1729549840953,-151.0,0.00046,14]
[340624395,1729549840962,-151.0,0.00046,14]
[340624397,1729549840971,-151.0,0.00046,14]
[340624399,1729549840980,-250.381868,0.00046,14]
[340624400,1729549840990,-150.0,0.00046004,2]
[340624401,1729549840999,-150.0,0.00046008,2]
[340624402,1729549841008,-150.0,0.00046017,2]
[340624403,1729549841017,-150.0,0.00046023,2]
[340624404,1729549841026,-150.0,0.00046024,2]
[340624405,1729549841035,-500.0,0.00046073,120]
[340624406,1729549841044,-150.0,0.00046111,2]
[340624407,1729549841053,-490.3,0.00046112,2]
[340624408,1729549841062,-150.0,0.00046127,2]
[340624409,1729549841071,-150.0,0.00046155,2]
[340624410,1729549841080,-150.0,0.00046169,2]
[340624411,1729549841089,-150.0,0.00046191,2]
[340624412,1729549841098,-204.0,0.0004623,30]
[340624413,1729549841108,-150.0,0.00046243,2]
[340624414,1729549841118,-156.31,0.00046275,120]
[340624415,1729549841128,-150.0,0.00046289,2]
[340624416,1729549841137,-150.0,0.0004633,2]
[340624417,1729549841146,-750.0,0.00046347,120]
[340624418,1729549841156,-1000.0,0.000464,7]
[340624419,1729549841165,-2000.0,0.0004641,120]
[340624420,1729549841174,-150.0,0.00046411,2]
[340624421,1729549841183,-150.0,0.00046413,2]
[340624422,1729549841192,-150.0,0.00046419,2]
[340624423,1729549841201,-150.0,0.00046477,2]
[340624424,1729549841210,-400.0,0.00046479,10]
[340624425,1729549841219,-88888.0,0.0004648,120]
[340624426,1729549841228,-150.0,0.0004648,2]
[340624427,1729549841238,-150.0,0.00046515,2]
[340624428,1729549841247,-150.0,0.00046521,2]
[340624429,1729549841256,-150.0,0.00046537,2]
[340624430,1729549841266,-150.0,0.00046553,2]
[340624431,1729549841275,-400.0,0.00046579,10]
[340624432,1729549841284,-190801.03800917,0.0004658,3]
[340624433,1729549841293,-150.0,0.00046598,7]
[340624434,1729549841302,-3000.0,0.000466,2]
[340624435,1729549841311,-150.0,0.00046606,7]
[340624436,1729549841321,-1000.0,0.00046621,120]
[340624437,1729549841330,-150.0,0.00046663,7]
[340624438,1729549841339,-4007.0,0.00046685,30]
[340624439,1729549841347,-555.0,0.00046757,2]
[340624440,1729549841356,-936.0,0.00046757,2]
[340624441,1729549841365,-150.0,0.0004676,7]
[340624442,1729549841374,-2000.0,0.00046821,120]
[340624443,1729549841384,-150.0,0.00046868,7]
[340624444,1729549841393,-150.0,0.0004687,7]
[340624445,1729549841402,-1250.0,0.00046895,120]
[340624446,1729549841411,-150.0,0.00046898,7]
[340624447,1729549841420,-162.9367521,0.000469,25]
[340624448,1729549841429,-360.0,0.000469,30]
[340624449,1729549841439,-1000.0,0.000469,30]
[340624450,1729549841448,-211.0,0.0004691,30]
[340624451,1729549841457,-156.1,0.00046967,2]
[340624452,1729549841466,-150.0,0.0004697,7]
[340624453,1729549841475,-496.89091907,0.00046986,30]
[340624454,1729549841484,-150.0,0.00046986,30]
[340624455,1729549841495,-229.44674857,0.00046986,30]
[340624456,1729549841506,-150.0,0.00046986,30]
[340624457,1729549841515,-200.61952878,0.00046986,30]
[340624458,1729549841524,-150.0,0.00046986,30]
[340624459,1729549841532,-260.4083244,0.00046986,30]
[340624460,1729549841541,-150.0,0.00046986,30]
[340624461,1729549841554,-150.0,0.00046986,30]
[340624462,1729549841563,-150.0,0.00046986,30]
[340624463,1729549841572,-150.52,0.0004699,2]
[340624464,1729549841581,-150.52,0.0004699,2]
[340624465,1729549841590,-400.0,0.00046999,10]
[340624466,1729549841599,-400.0,0.00046999,10]
[340624467,1729549841711,-50000.0,0.00047,47]
[340624468,1729549841721,-50000.0,0.00047,57]
[340624469,1729549841731,-50000.0,0.00047,37]
[340624470,1729549841741,-925367.7146099,0.00047,120]
[340624471,1729549841755,-74632.2853901,0.00047,120]
[340624472,1729549841765,-561.49,0.00047,60]
[340624473,1729549841774,-241.899569,0.00047,14]
[340624474,1729549841783,-151.0,0.00047,14]
[340624475,1729549841792,-450.0,0.00047,120]
[340624476,1729549841802,-151.0,0.00047,14]
[340624477,1729549841811,-151.0,0.00047,14]
[340624478,1729549841820,-151.0,0.00047,14]
[340624479,1729549841829,-151.0,0.00047,14]
[340624480,1729549841838,-151.0,0.00047,14]
[340624481,1729549841847,-961.515629,0.00047,14]
[340624482,1729549841856,-961.515629,0.00047,14]
[340624483,1729549841866,-151.0,0.00047,14]
[340624484,1729549841875,-151.0,0.00047,14]
[340624485,1729549841884,-166.10523455,0.00047,2]
[340624486,1729549841894,-14831.27341791,0.00047,2]
[340624487,1729549841905,-151.0,0.00047,14]
[340624488,1729549841915,-151.0,0.00047,14]
[340624489,1729549841924,-496.89091907,0.00047001,30]
[340624490,1729549841933,-229.44674857,0.00047001,30]
[340624491,1729549841943,-150.0,0.00047012,30]
[340624492,1729549841952,-496.89091907,0.00047016,30]
[340624493,1729549841961,-229.44674857,0.00047016,30]
[340624494,1729549841970,-150.0,0.00047024,30]
[340624495,1729549841980,-150.0,0.00047026,7]
[340624496,1729549841989,-496.89091907,0.0004703,30]
[340624497,1729549841999,-229.44674857,0.0004703,30]
[340624498,1729549842008,-150.0,0.00047036,14]
[340624499,1729549842017,-150.0,0.00047036,30]
[340624500,1729549842026,-150.0,0.00047038,30]
[340624501,1729549842037,-150.0,0.00047042,30]
[340624502,1729549842047,-609.15884492,0.00047044,120]
[340624503,1729549842056,-496.89091907,0.00047045,30]
[340624504,1729549842065,-229.44674857,0.00047045,30]
[340624505,1729549842075,-150.0,0.00047053,7]
[340624506,1729549842084,-496.89091907,0.0004706,30]
[340624507,1729549842092,-229.44674857,0.0004706,30]
[340624508,1729549842102,-150.0,0.00047061,30]
[340624509,1729549842111,-150.0,0.00047064,30]
[340624510,1729549842120,-496.89091907,0.00047074,30]
[340624511,1729549842130,-229.44674857,0.00047074,30]
[340624512,1729549842139,-150.0,0.00047087,30]
[340624513,1729549842148,-496.89091907,0.00047089,30]
[340624514,1729549842157,-229.44674857,0.00047089,30]
[340624515,1729549842166,-150.0,0.0004709,30]
[340624516,1729549842176,-150.0,0.00047098,30]
[340624517,1729549842185,-150.0,0.00047098,30]
[340624518,1729549842194,-496.89091907,0.00047104,30]
[340624519,1729549842205,-229.44674857,0.00047104,30]
[340624520,1729549842214,-1500.0,0.00047105,14]
[340624521,1729549842223,-150.0,0.0004711,7]
[340624522,1729549842232,-150.0,0.00047116,30]
[340624523,1729549842242,-496.89091907,0.00047118,30]
[340624524,1729549842250,-229.44674857,0.00047118,30]
[340624525,1729549842260,-496.89091907,0.00047133,30]
[340624526,1729549842269,-229.44674857,0.00047133,30]
[340624527,1729549842278,-150.0,0.00047135,30]
[340624528,1729549842287,-150.0,0.00047137,30]
[340624529,1729549842297,-150.0,0.00047142,30]
[340624530,1729549842306,-496.89091907,0.00047148,30]
[340624531,1729549842315,-229.44674857,0.00047148,30]
[340624532,1729549842324,-150.0,0.00047148,30]
[340624533,1729549842333,-150.0,0.00047154,30]
[340624534,1729549842342,-496.89091907,0.00047163,30]
[340624535,1729549842351,-229.44674857,0.00047163,30]
[340624536,1729549842360,-150.0,0.00047168,30]
[340624537,1729549842369,-1500.0,0.00047169,120]
[340624538,1729549842379,-150.0,0.00047173,30]
[340624539,1729549842388,-150.0,0.00047173,7]
[340624540,1729549842397,-496.89091907,0.00047177,30]
[340624541,1729549842406,-229.44674857,0.00047177,30]
[340624542,1729549842415,-150.0,0.00047179,7]
[340624543,1729549842424,-150.0,0.00047187,30]
[340624544,1729549842432,-496.89091907,0.00047192,30]
[340624545,1729549842441,-229.44674857,0.00047192,30]
[340624546,1729549842450,-150.0,0.00047194,30]
[340624547,1729549842459,-496.89091907,0.00047207,30]
[340624548,1729549842468,-229.44674857,0.00047207,30]
[340624549,1729549842477,-150.0,0.00047209,7]
[340624550,1729549842486,-150.0,0.0004721,30]
[340624551,1729549842495,-150.0,0.0004721,30]
[340624552,1729549842504,-150.0,0.0004722,30]
[340624553,1729549842513,-496.89091907,0.00047221,30]
[340624554,1729549842522,-229.44674857,0.00047221,30]
[340624555,1729549842531,-2000.0,0.00047232,120]
[340624556,1729549842540,-496.89091907,0.00047236,30]
[340624557,1729549842551,-229.44674857,0.00047236,30]
[340624558,1729549842560,-150.0,0.00047237,30]
[340624559,1729549842569,-150.0,0.00047246,30]
[340624560,1729549842577,-150.0,0.00047247,30]
[340624561,1729549842586,-496.89091907,0.00047251,30]
[340624562,1729549842595,-229.44674857,0.00047251,30]
[340624563,1729549842604,-496.89091907,0.00047265,30]
[340624564,1729549842614,-229.44674857,0.00047265,30]
[340624565,1729549842623,-150.0,0.00047266,30]
[340624566,1729549842632,-150.0,0.00047272,30]
[340624567,1729549842642,-150.0,0.00047278,7]
[340624568,1729549842652,-496.89091907,0.0004728,30]
[340624569,1729549842663,-229.44674857,0.0004728,30]
[340624570,1729549842672,-150.0,0.00047284,30]
[340624571,1729549842681,-150.0,0.00047287,7]
[340624572,1729549842690,-150.0,0.00047287,30]
[340624573,1729549842700,-496.89091907,0.00047295,30]
[340624574,1729549842709,-229.44674857,0.00047295,30]
[340624575,1729549842718,-150.0,0.00047295,7]
[340624576,1729549842727,-150.0,0.00047298,30]
[340624577,1729549842736,-150.0,0.00047301,7]
[340624578,1729549842746,-496.89091907,0.00047309,30]
[340624579,1729549842755,-229.44674857,0.00047309,30]
[340624580,1729549842765,-150.0,0.00047309,30]
[340624581,1729549842774,-150.0,0.00047311,7]
[340624582,1729549842783,-150.0,0.00047322,30]
[340624583,1729549842792,-150.0,0.00047322,30]
[340624584,1729549842801,-150.0,0.00047324,30]
[340624585,1729549842810,-496.89091907,0.00047324,30]
[340624586,1729549842819,-229.44674857,0.00047324,30]
[340624587,1729549842828,-204.0,0.0004733,30]
[340624588,1729549842837,-150.0,0.00047337,30]
[340624589,1729549842846,-496.89091907,0.00047339,30]
[340624590,1729549842855,-229.44674857,0.00047339,30]
[340624591,1729549842864,-150.0,0.00047344,7]
[340624592,1729549842873,-150.0,0.0004735,30]
[340624593,1729549842883,-496.89091907,0.00047353,30]
[340624594,1729549842892,-229.44674857,0.00047353,30]
[340624595,1729549842902,-150.0,0.00047354,7]
[340624596,1729549842911,-150.0,0.00047359,30]
[340624597,1729549842920,-496.89091907,0.00047368,30]
[340624598,1729549842930,-229.44674857,0.00047368,30]
[340624599,1729549842939,-150.0,0.00047376,30]
[340624600,1729549842948,-150.0,0.00047378,30]
[340624601,1729549842957,-496.89091907,0.00047383,30]
[340624602,1729549842966,-229.44674857,0.00047383,30]
[340624603,1729549842975,-150.0,0.00047387,30]
[340624604,1729549842985,-150.0,0.00047396,30]
[340624605,1729549842994,-496.89091907,0.00047397,30]
[340624606,1729549843003,-229.44674857,0.00047397,30]
[340624607,1729549843013,-150.0,0.00047402,30]
[340624608,1729549843022,-496.89091907,0.00047412,30]
[340624609,1729549843032,-229.44674857,0.00047412,30]
[340624610,1729549843041,-150.0,0.00047416,7]
[340624611,1729549843050,-150.0,0.00047419,7]
[340624612,1729549843059,-496.89091907,0.00047427,30]
[340624613,1729549843069,-229.44674857,0.00047427,30]
[340624614,1729549843078,-150.0,0.00047428,30]
[340624615,1729549843087,-150.0,0.00047434,30]
[340624616,1729549843096,-150.0,0.00047434,30]
[340624617,1729549843105,-150.0,0.00047435,7]
[340624618,1729549843114,-150.0,0.00047437,30]
[340624619,1729549843124,-259.44485956,0.00047438,14]
[340624620,1729549843133,-496.89091907,0.00047441,30]
[340624621,1729549843142,-229.44674857,0.00047441,30]
[340624622,1729549843151,-1750.0,0.00047443,120]
[340624623,1729549843161,-150.0,0.00047447,7]
[340624624,1729549843170,-150.0,0.00047454,30]
[340624625,1729549843179,-496.89091907,0.00047456,30]
[340624626,1729549843188,-229.44674857,0.00047456,30]
[340624627,1729549843198,-496.89091907,0.00047471,30]
[340624628,1729549843207,-229.44674857,0.00047471,30]
[340624629,1729549843216,-150.0,0.00047471,30]
[340624630,1729549843225,-150.0,0.00047471,30]
[340624631,1729549843235,-150.0,0.00047471,30]
[340624632,1729549843245,-300.0,0.00047473,10]
[340624633,1729549843254,-150.0,0.0004748,30]
[340624634,1729549843266,-496.89091907,0.00047486,30]
[340624635,1729549843275,-229.44674857,0.00047486,30]
[340624636,1729549843284,-150.0,0.00047488,30]
[340624637,1729549843293,-150.0,0.0004749,30]
[340624638,1729549843303,-150.52,0.0004749,2]
[340624639,1729549843312,-39052.0508386,0.00047495,2]
[340624640,1729549843321,-5444.1390682,0.00047495,2]
[340624641,1729549843330,-6304.2413938,0.00047495,2]
[340624642,1729549843339,-217.52456671,0.00047499,2]
[340624643,1729549843349,-151.20454897,0.00047499,2]
[340624644,1729549843359,-1000.0,0.00047499,120]
[340624645,1729549843368,-400.0,0.00047499,10]
[340624646,1729549843378,-400.0,0.00047499,10]
[340624647,1729549843388,-400.0,0.00047499,10]
[340624648,1729549843398,-400.0,0.00047499,10]
[340624649,1729549843407,-418389.41959515,0.000475,2]
[340624650,1729549843510,-308.42346545,0.000475,2]
[340624651,1729549843521,-283.40264551,0.000475,2]
[340624652,1729549843530,-151.0,0.000475,14]
[340624653,1729549843539,-151.0,0.000475,14]
[340624654,1729549843549,-289.876374,0.000475,14]
[340624655,1729549843559,-287.66464,0.000475,14]
[340624656,1729549843568,-574.70513078,0.000475,14]
[340624657,1729549843579,-386.81049822,0.000475,14]
[340624658,1729549843588,-128.07236382,0.000475,14]
[340624659,1729549843599,-348.23005832,0.000475,14]
[340624660,1729549843610,-485.21320686,0.000475,14]
[340624661,1729549843618,-151.0,0.000475,14]
[340624662,1729549843629,-151.0,0.000475,14]
[340624663,1729549843639,-496.89091907,0.000475,30]
[340624664,1729549843648,-229.44674857,0.000475,30]
[340624665,1729549843657,-150.0,0.00047505,30]
[340624666,1729549843666,-150.0,0.00047508,30]
[340624667,1729549843675,-496.89091907,0.00047515,30]
[340624668,1729549843685,-229.44674857,0.00047515,30]
[340624669,1729549843695,-8934.78451308,0.0004752,120]
[340624670,1729549843704,-496.89091907,0.0004753,30]
[340624671,1729549843714,-229.44674857,0.0004753,30]
[340624672,1729549843723,-150.0,0.00047531,30]
[340624673,1729549843733,-150.0,0.00047538,30]
[340624674,1729549843742,-496.89091907,0.00047544,30]
[340624675,1729549843751,-229.44674857,0.00047544,30]
[340624676,1729549843760,-150.0,0.00047545,30]
[340624677,1729549843769,-150.0,0.00047545,30]
[340624678,1729549843778,-150.0,0.00047557,30]
[340624679,1729549843787,-496.89091907,0.00047559,30]
[340624680,1729549843796,-229.44674857,0.00047559,30]
[340624681,1729549843805,-496.89091907,0.00047574,30]
[340624682,1729549843814,-229.44674857,0.00047574,30]
[340624683,1729549843824,-150.0,0.00047581,120]
[340624684,1729549843833,-150.0,0.00047583,30]
[340624685,1729549843842,-150.0,0.00047583,30]
[340624686,1729549843851,-150.0,0.00047588,30]
[340624687,1729549843860,-496.89091907,0.00047588,30]
[340624688,1729549843869,-229.44674857,0.00047588,30]
[340624689,1729549843878,-150.0,0.00047601,30]
[340624690,1729549843887,-496.89091907,0.00047603,30]
[340624691,1729549843896,-229.44674857,0.00047603,30]
[340624692,1729549843909,-150.0,0.00047609,30]
[340624693,1729549843918,-496.89091907,0.00047618,30]
[340624694,1729549843927,-229.44674857,0.00047618,30]
[340624695,1729549843938,-150.0,0.0004762,30]
[340624696,1729549843947,-496.89091907,0.00047632,30]
[340624697,1729549843956,-229.44674857,0.00047632,30]
[340624698,1729549843965,-150.0,0.00047632,30]
[340624699,1729549843974,-150.0,0.00047635,30]
[340624700,1729549843983,-150.0,0.00047638,30]
[340624701,1729549843994,-2000.0,0.00047643,120]
[340624702,1729549844003,-496.89091907,0.00047647,30]
[340624703,1729549844012,-229.44674857,0.00047647,30]
[340624704,1729549844022,-150.0,0.00047657,30]
[340624705,1729549844031,-150.0,0.00047657,30]
[340624706,1729549844040,-29.13890369,0.00047661,30]
[340624707,1729549844053,-120.86109631,0.00047661,30]
[340624708,1729549844063,-496.89091907,0.00047662,30]
[340624709,1729549844072,-229.44674857,0.00047662,30]
[340624710,1729549844082,-53.10015272,0.0004767,10]
[340624711,1729549844094,-346.89984728,0.0004767,10]
[340624713,1729549844104,-400.0,0.0004767,10]
[340624714,1729549844113,-400.0,0.0004767,10]
[340624715,1729549844122,-400.0,0.0004767,10]
[340624716,1729549844131,-500.0,0.00047671,120]
[340624717,1729549844140,-350.6250916,0.00047671,5]
[340624718,1729549844152,-120.27451694,0.00047671,5]